bitfinex/quotes_ETHUSD_20251127
["timestamp","ask_amount","ask_price","bid_price","bid_amount"]
[1764208715282,3.27182305,3056.4,3056.3,0.001]
[1764208715489,3.48782305,3056.4,3056.3,0.5008]
[1764208716472,3.27182305,3056.4,3056.3,0.5008]
[1764208716972,3.27182305,3056.4,3056.3,0.001]
[1764208717604,3.48782305,3056.4,3056.3,0.5008]
[1764208718815,3.48782305,3056.4,3056.3,0.001]
[1764208719583,3.72302305,3056.4,3056.3,0.001]
[1764208719782,3.48782305,3056.4,3056.3,0.001]
[1764208720003,3.48782305,3056.4,3056.3,0.4671]
[1764208720318,3.27182305,3056.4,3056.3,0.9637]
[1764208720797,3.27182305,3056.4,3056.3,0.001]
[1764208720999,3.27182305,3056.4,3056.3,0.4671]
[1764208721199,3.27182305,3056.4,3056.3,0.001]
[1764208721591,0.216,3056.8,3056.3,0.9637]
[1764208722017,0.216,3056.8,3056.4,0.4966]
[1764208722619,0.216,3056.8,3056.3,0.001]
[1764208722784,0.673,3056.8,3056.3,0.001]
[1764208723195,0.457,3056.7,3056.3,0.001]
[1764208723580,6.54321794,3056.6,3056.3,0.001]
[1764208723786,0.271,3056.4,3056.3,0.001]
[1764208723988,0.216,3056.4,3056.3,0.001]
[1764208724886,0.216,3056.4,3056.3,0.9637]
[1764208725415,0.452,3056.4,3056.3,0.001]
[1764208725620,4.72541716,3056.4,3056.3,0.001]
[1764208725800,4.82541716,3056.4,3056.3,0.001]
[1764208726319,5.32902345,3056.4,3056.3,0.001]
[1764208726524,4.82541716,3056.4,3056.3,0.001]
[1764208727022,5.70502345,3056.4,3056.3,0.001]
[1764208727716,5.60502345,3056.4,3056.3,0.001]
[1764208728443,5.70502345,3056.4,3056.3,0.001]
[1764208728616,5.60502345,3056.4,3056.3,0.001]
[1764208728912,5.23092116,3056.4,3056.3,0.001]
[1764208729419,3.99741716,3056.4,3056.3,0.001]
[1764208730920,4.87898903,3056.4,3056.3,0.001]
[1764208731284,3.27182305,3056.4,3056.3,0.001]
[1764208731484,3.27182305,3056.4,3056.3,0.4671]
[1764208731820,3.27160897,3056.6,3056.3,0.4671]
[1764208731821,6.54331524,3056.6,3056.3,0.4671]
[1764208732435,6.54331524,3056.6,3056.3,0.001]
[1764208732801,0.271,3056.4,3056.3,0.001]
[1764208733006,0.371,3056.4,3056.3,0.001]
[1764208733332,0.8261,3056.4,3056.3,0.001]
[1764208733539,1.70780849,3056.4,3056.3,0.001]
[1764208733837,4.82351716,3056.4,3056.3,0.001]
[1764208734440,5.99886958,3056.4,3056.3,0.001]
[1764208734643,6.40437358,3056.4,3056.3,0.001]
[1764208734944,0.3041,3055.7,3055.6,1e-08]
[1764208735106,1.24469411,3055.7,3055.6,1e-08]
[1764208735309,1.70169411,3055.7,3055.6,1e-08]
[1764208735909,6.15123566,3055.7,3055.6,1e-08]
[1764208736218,6.55673966,3055.7,3055.6,1e-08]
[1764208736840,5.37977067,3055.7,3055.6,1e-08]
[1764208737045,4.92277067,3055.7,3055.6,1e-08]
[1764208737342,5.39904541,3055.7,3055.6,1e-08]
[1764208737541,5.85604541,3055.7,3055.6,1e-08]
[1764208738110,5.39904541,3055.7,3055.6,1e-08]
[1764208738340,5.85604541,3055.7,3055.6,1e-08]
[1764208738535,5.09954541,3055.7,3055.6,1e-08]
[1764208738746,4.21776667,3055.7,3055.6,1e-08]
[1764208739242,5.40697067,3055.7,3055.6,1e-08]
[1764208741130,5.32747931,3055.7,3055.6,1e-08]
[1764208741313,3.27257256,3055.7,3055.6,0.96270001]
[1764208741921,7.27009671,3056.0,3055.6,1e-08]
[1764208742534,0.2336,3055.7,3055.6,1e-08]
[1764208742813,0.5486,3055.7,3055.6,1e-08]
[1764208743036,0.215,3055.7,3055.6,1e-08]
[1764208743426,0.854104,3055.7,3055.6,1e-08]
[1764208743640,1.408804,3055.7,3055.6,1e-08]
[1764208744016,5.40697067,3055.7,3055.6,1e-08]
[1764208745043,6.28768331,3055.7,3055.6,1e-08]
[1764208745246,6.28717354,3055.7,3055.6,1e-08]
[1764208745418,6.07217354,3055.7,3055.6,1e-08]
[1764208745618,6.28987354,3055.7,3055.6,1e-08]
[1764208747044,5.40967067,3055.7,3055.6,1e-08]
[1764208749019,4.80476667,3055.7,3055.6,1e-08]
[1764208749225,4.21316667,3055.7,3055.6,1e-08]
[1764208749759,5.20737067,3055.7,3055.6,1e-08]
[1764208749932,6.58663966,3055.7,3055.6,1e-08]
[1764208750131,5.40967067,3055.7,3055.6,1e-08]
[1764208751239,5.41167067,3055.7,3055.6,1e-08]
[1764208751432,9.87812482,3055.7,3055.6,1e-08]
[1764208752667,1.76545349,3055.8,3055.6,1e-08]
[1764208752668,1.17347819,3055.9,3055.6,0.96750001]
[1764208752962,2.91884503,3056.6,3055.6,0.96750001]
[1764208752963,5.2652951,3057.5,3055.8,0.72559411]
[1764208753159,5.7303113,3058.6,3056.0,0.72559411]
[1764208753160,0.216,3058.5,3056.0,0.72559411]
[1764208753329,0.1,3058.4,3056.1,1.56560831]
[1764208753528,4.46645415,3058.1,3056.3,0.405504]
[1764208753837,4.46645415,3058.1,3056.4,0.69361626]
[1764208754043,4.46645415,3058.1,3056.3,1.16010431]
[1764208754044,4.46645415,3058.1,3056.5,0.87898832]
[1764208754336,4.46645415,3058.1,3056.6,1.41921037]
[1764208754536,11.00540959,3058.6,3056.7,0.69361626]
[1764208754756,11.00540959,3058.6,3056.8,0.69361626]
[1764208754944,11.00540959,3058.6,3056.9,0.69361626]
[1764208755128,11.00540959,3058.6,3056.7,0.94259411]
[1764208755342,11.00540959,3058.6,3056.8,1.11331538]
[1764208755548,14.27489534,3058.6,3056.9,0.69189645]
[1764208755864,14.37489534,3058.6,3057.0,0.69180722]
[1764208756057,14.37489534,3058.6,3056.8,0.42141893]
[1764208756231,11.10540959,3058.6,3056.9,0.69113586]
[1764208756434,11.10540959,3058.6,3057.0,0.90790748]
[1764208756435,3.26946969,3058.6,3057.0,0.90790748]
[1764208756655,3.26946969,3058.6,3057.1,0.69090748]
[1764208756864,6.53895544,3058.6,3057.1,0.217]
[1764208757062,9.80844119,3058.6,3057.1,0.217]
[1764208757364,6.53895544,3058.6,3057.0,0.217]
[1764208758165,9.80844119,3058.6,3056.6,0.72559411]
[1764208758466,6.53895544,3058.6,3056.7,0.90653744]
[1764208758632,6.53895544,3058.6,3056.8,1.82063555]
[1764208758833,6.53895544,3058.6,3056.6,0.86362818]
[1764208758834,9.80844119,3058.6,3056.9,0.68953744]
[1764208759029,6.53895544,3058.6,3056.9,0.217]
[1764208759552,6.53895544,3058.6,3057.0,1.09432498]
[1764208759753,3.26914904,3058.9,3057.2,0.405504]
[1764208759958,6.71839808,3058.9,3057.2,0.405504]
[1764208760163,6.71839808,3058.9,3057.3,0.217]
[1764208760665,11.45464574,3058.9,3056.3,6.19945089]
[1764208760845,4.46645415,3058.6,3056.8,1.76873308]
[1764208761044,4.46645415,3058.6,3056.9,0.6881049]
[1764208761448,4.94105415,3058.6,3057.0,0.217]
[1764208761767,0.4746,3058.5,3056.7,0.86362818]
[1764208761940,4.46645415,3057.7,3056.5,0.18537206]
[1764208762275,4.68345415,3057.7,3056.1,0.217]
[1764208762464,10.46631694,3057.6,3056.1,0.217]
[1764208762636,9.99171694,3057.6,3056.1,0.217]
[1764208762829,9.99171694,3057.6,3055.7,0.86362818]
[1764208762830,0.1,3057.5,3055.7,0.86362818]
[1764208763129,0.4746,3057.5,3055.7,0.217]
[1764208763333,0.72559411,3057.3,3055.7,0.217]
[1764208763532,0.217,3057.2,3055.7,0.217]
[1764208763859,0.72559411,3057.3,3055.7,0.217]
[1764208764161,0.217,3057.4,3055.8,0.217]
[1764208764361,3.2708599,3057.3,3055.9,0.68829189]
[1764208764562,0.72559411,3057.5,3055.9,3.27235812]
[1764208764763,6.7582919,3057.5,3056.0,0.34893581]
[1764208764973,6.7582919,3057.5,3056.0,1.03716283]
[1764208765174,6.7582919,3057.5,3056.0,0.34893581]
[1764208765675,10.02893785,3057.5,3055.8,0.217]
[1764208765843,6.7582919,3057.5,3055.9,0.68823887]
[1764208766049,6.7582919,3057.5,3056.0,0.90523887]
[1764208766255,9.81193785,3057.5,3055.8,0.72559411]
[1764208766568,9.81193785,3057.5,3055.9,1.39044445]
[1764208766768,9.81193785,3057.5,3056.0,0.90426509]
[1764208766973,9.81193785,3057.5,3056.0,0.216]
[1764208767272,3.27000425,3058.1,3056.1,1.09387808]
[1764208767581,6.75607824,3058.1,3056.2,0.68837408]
[1764208767786,10.02615223,3058.1,3056.3,0.68837408]
[1764208767942,3.26925591,3058.8,3056.7,4.46645415]
[1764208768148,6.75551182,3058.8,3056.8,0.90379138]
[1764208768405,6.75551182,3058.8,3056.9,0.68779138]
[1764208768552,0.72559411,3058.7,3057.0,3.95897227]
[1764208768758,0.72559411,3058.7,3056.8,4.35098569]
[1764208768759,4.20823444,3058.4,3057.1,0.68779138]
[1764208769092,6.53851182,3058.8,3057.2,0.90444794]
[1764208769247,3.26925591,3058.8,3057.3,0.68744794]
[1764208769447,0.6547,3059.2,3057.4,0.68744794]
[1764208769448,3.2689353,3059.1,3057.4,0.68744794]
[1764208769768,7.01248206,3059.1,3057.5,0.90444794]
[1764208769973,7.01248206,3059.1,3057.6,0.68744794]
[1764208769974,6.53788206,3059.1,3057.6,0.68744794]
[1764208770271,6.53788206,3059.1,3057.3,0.86362818]
[1764208770476,6.53788206,3059.1,3057.5,3.27064595]
[1764208770647,6.53788206,3059.1,3057.6,1.10413465]
[1764208770849,9.80682882,3059.1,3057.6,0.4174346]
[1764208771074,4.20823444,3058.9,3057.3,0.86362818]
[1764208771274,0.72559411,3058.8,3057.4,0.68655242]
[1764208771572,0.90569411,3058.8,3057.4,0.217]
[1764208771772,0.1801,3058.8,3057.4,0.217]
[1764208771944,0.6547,3058.8,3057.0,0.86362818]
[1764208772144,4.20823444,3058.7,3057.1,0.68677344]
[1764208772377,5.17912788,3058.7,3057.2,0.90377344]
[1764208772547,9.80872974,3058.5,3057.3,0.68677344]
[1764208772870,6.53915316,3058.5,3057.3,0.68677344]
[1764208773081,6.53915316,3058.5,3056.9,0.86362818]
[1764208773262,0.4746,3058.4,3057.0,0.9038888]
[1764208773465,0.4746,3058.4,3057.1,0.6868888]
[1764208773466,5.73286741,3058.4,3057.1,0.6868888]
[1764208773679,5.73286741,3058.4,3057.1,0.217]
[1764208773880,0.4746,3058.3,3057.1,0.217]
[1764208774086,0.4746,3058.3,3057.2,0.217]
[1764208774287,4.20823444,3058.0,3056.6,0.86362818]
[1764208774597,9.81065436,3057.9,3056.7,0.9045026]
[1764208774801,10.46535436,3057.9,3056.7,0.217]
[1764208774967,0.4746,3057.8,3056.7,0.217]
[1764208775169,0.4746,3057.8,3056.8,0.68801249]
[1764208775470,0.4746,3057.8,3056.8,0.217]
[1764208776068,9.99075436,3057.9,3056.8,0.217]
[1764208776269,6.72053624,3057.9,3056.8,0.217]
[1764208776468,6.54086404,3057.7,3056.5,0.86362818]
[1764208776693,6.54086404,3057.7,3056.6,0.90444044]
[1764208776889,3.27043202,3057.7,3056.7,0.68844044]
[1764208777092,0.4746,3057.6,3056.7,0.90444044]
[1764208777394,0.4746,3057.6,3056.8,0.68906202]
[1764208777593,0.4746,3057.6,3056.7,0.216]
[1764208778172,0.4746,3057.6,3056.8,0.68913964]
[1764208778391,0.4746,3057.6,3056.9,0.68974033]
[1764208778694,6.5412919,3057.5,3056.7,0.216]
[1764208778896,6.5412919,3057.5,3056.8,0.68977459]
[1764208779098,6.5412919,3057.5,3056.7,0.216]
[1764208779272,6.5412919,3057.5,3056.8,0.69051214]
[1764208779473,10.28653785,3057.5,3056.8,0.69051214]
[1764208779693,6.5412919,3057.5,3056.8,0.69051214]
[1764208780088,6.5412919,3057.5,3056.9,0.69051214]
[1764208780414,0.4628,3057.4,3057.0,0.69051214]
[1764208780576,6.5417198,3057.3,3056.7,0.216]
[1764208780778,6.5417198,3057.3,3056.8,0.69188633]
[1764208780995,6.5417198,3057.3,3056.9,0.69188633]
[1764208781212,6.5417198,3057.3,3057.0,0.69188633]
[1764208781412,6.5417198,3057.3,3056.7,0.86362818]
[1764208781712,0.494,3057.1,3056.8,0.69310874]
[1764208782011,0.494,3057.1,3056.4,0.86362818]
[1764208782221,0.494,3057.1,3056.6,0.86362818]
[1764208782387,0.494,3057.1,3056.7,0.69332762]
[1764208782586,6.54193378,3057.2,3056.8,0.69332762]
[1764208782797,6.54193378,3057.2,3056.9,0.69332762]
[1764208783007,6.54193378,3057.2,3057.0,0.69332762]
[1764208783191,3.27096689,3057.2,3056.6,0.86362818]
[1764208783404,3.27096689,3057.2,3056.8,0.86362818]
[1764208783405,6.54193378,3057.2,3056.8,0.86362818]
[1764208783587,6.54193378,3057.2,3056.9,0.69497455]
[1764208783797,3.27037693,3057.8,3057.0,0.69497455]
[1764208784006,7.6833891,3057.8,3057.1,0.69497455]
[1764208784205,0.4628,3057.7,3057.2,0.69482116]
[1764208784393,0.4628,3057.7,3056.8,0.86362818]
[1764208784707,6.54107796,3057.6,3056.9,0.69479787]
[1764208784910,9.81161694,3057.6,3057.0,0.69479787]
[1764208785109,9.81161694,3057.6,3057.1,0.69479787]
[1764208785308,3.27053898,3057.6,3057.2,0.69479787]
[1764208785515,3.27053898,3057.6,3057.3,1.55842605]
[1764208785721,3.27053898,3057.6,3057.4,1.55842605]
[1764208786022,3.27053898,3057.6,3057.5,0.69479787]
[1764208786515,0.494,3057.6,3057.5,0.69479787]
[1764208786715,3.27043202,3057.7,3057.5,0.69479787]
[1764208786886,3.27043202,3057.7,3057.6,0.69479787]
[1764208787089,6.54086404,3057.7,3057.2,0.216]
[1764208787289,6.54086404,3057.7,3057.3,0.69452867]
[1764208787615,6.54086404,3057.7,3057.4,0.69456074]
[1764208787823,0.1856,3056.5,3056.4,1.15799806]
[1764208788026,4.20823444,3056.1,3056.0,0.001]
[1764208788191,0.1856,3056.5,3056.0,0.001]
[1764208788391,0.94159411,3056.4,3056.0,0.001]
[1764208788668,6.54386022,3056.3,3056.0,0.001]
[1764208789453,3.27193011,3056.3,3056.0,0.001]
[1764208789638,6.54386022,3056.3,3056.0,0.001]
[1764208790034,0.0032,3056.1,3056.0,0.001]
[1764208790847,4.62913444,3056.1,3056.0,0.001]
[1764208791166,6.46232487,3056.1,3056.0,0.001]
[1764208791350,7.78454338,3056.1,3056.0,0.001]
[1764208792061,3.57630894,3056.1,3056.0,0.001]
[1764208792226,3.79230894,3056.1,3056.0,0.001]
[1764208793048,7.06445317,3056.1,3056.0,0.001]
[1764208793236,0.1,3055.8,3055.7,0.001]
[1764208793436,5.15302855,3055.8,3055.7,0.001]
[1764208793644,6.31792087,3055.8,3055.7,0.001]
[1764208794356,6.82342487,3055.8,3055.7,0.001]
[1764208795061,10.09589034,3055.8,3055.7,0.001]
[1764208795246,10.74997674,3055.8,3055.7,0.001]
[1764208795650,9.78167274,3055.8,3055.7,0.001]
[1764208795865,9.07958042,3055.8,3055.7,0.001]
[1764208796089,9.17958042,3055.8,3055.7,0.001]
[1764208796256,9.07958042,3055.8,3055.7,0.001]
[1764208797448,8.13798631,3055.8,3055.7,0.001]
[1764208797634,7.69569991,3055.8,3055.7,0.001]
[1764208798337,3.27246547,3055.8,3055.7,0.001]
[1764208798862,3.31346547,3055.8,3055.7,0.001]
[1764208799037,3.27246547,3055.8,3055.7,0.001]
[1764208799663,4.41446951,3055.8,3055.7,0.001]
[1764208799961,9.17710395,3055.8,3055.7,0.001]
[1764208800162,9.58260795,3055.8,3055.7,0.001]
[1764208800873,10.30820206,3055.8,3055.7,0.001]
[1764208801061,11.00793059,3055.8,3055.7,0.001]
[1764208802138,9.35252655,3055.8,3055.7,0.001]
[1764208802345,10.12612655,3055.8,3055.7,0.001]
[1764208803074,3.972194,3055.8,3055.7,0.001]
[1764208803263,0.215,3056.0,3055.7,0.001]
[1764208803464,0.70020501,3056.2,3055.7,0.4577]
[1764208803775,3.48693011,3056.3,3055.7,0.9529]
[1764208804075,0.1,3056.2,3055.7,0.001]
[1764208804268,0.1,3056.1,3055.7,0.001]
[1764208804475,3.45736954,3056.5,3055.7,0.001]
[1764208804476,0.1856,3056.5,3055.7,0.001]
[1764208804776,10.2438775,3059.4,3055.7,0.001]
[1764208804777,0.1856,3057.9,3056.4,0.4567]
[1764208804934,4.20823444,3057.3,3056.5,0.4567]
[1764208805140,4.20823444,3057.3,3056.2,0.6919]
[1764208805141,0.72559411,3057.2,3056.2,0.6919]
[1764208805440,5.28318707,3057.3,3056.3,0.4952]
[1764208805786,6.54193378,3057.2,3056.3,0.4952]
[1764208806439,9.81290067,3057.2,3056.3,0.4952]
[1764208806653,0.1,3057.1,3056.3,0.4952]
[1764208806864,1.61960877,3057.1,3056.3,0.4952]
[1764208807168,1.83560877,3057.1,3056.3,0.4952]
[1764208807596,4.20823444,3056.9,3056.2,0.1967]
[1764208807799,6.64278984,3056.8,3056.0,0.1967]
[1764208808376,6.54278984,3056.8,3056.1,0.4683]
[1764208809195,0.002,3057.1,3056.7,0.4567]
[1764208809364,6.54416782,3057.1,3056.1,0.4683]
[1764208809789,0.002,3057.1,3056.1,0.4683]
[1764208810182,0.002,3057.1,3056.1,3.74044423]
[1764208810578,0.002,3057.1,3056.2,0.4849]
[1764208812275,0.002,3057.1,3056.0,0.4127]
[1764208812276,4.66073444,3057.1,3056.0,0.1977]
[1764208812475,0.1,3056.9,3056.0,0.1977]
[1764208812801,0.70141777,3057.0,3056.0,0.6826]
[1764208813301,4.21023444,3057.1,3056.1,0.4849]
[1764208813998,4.21023444,3057.1,3056.0,0.1977]
[1764208813999,6.5425758,3056.9,3056.0,0.1977]
[1764208814177,0.1,3056.7,3056.0,0.1977]
[1764208814377,4.20823444,3056.3,3056.0,0.001]
[1764208814975,0.493,3056.1,3056.0,0.001]
[1764208815363,0.593,3056.1,3056.0,0.001]
[1764208815795,0.6494,3056.1,3056.0,0.001]
[1764208815999,4.37240767,3056.1,3056.0,0.001]
[1764208817102,5.13126785,3056.1,3056.0,0.001]
[1764208817880,5.53677185,3056.1,3056.0,0.001]
[1764208818084,6.26236596,3056.1,3056.0,0.001]
[1764208819109,6.20596596,3056.1,3056.0,0.001]
[1764208819275,6.79410235,3056.1,3056.0,0.001]
[1764208819683,5.18986785,3056.1,3056.0,0.001]
[1764208819889,5.34626785,3056.1,3056.0,0.001]
[1764208820495,6.47736596,3056.1,3056.0,0.001]
[1764208820904,5.91546196,3056.1,3056.0,0.001]
[1764208821071,6.79407379,3056.1,3056.0,0.001]
[1764208821707,5.85347968,3056.1,3056.0,0.001]
[1764208821881,5.18986785,3056.1,3056.0,0.001]
[1764208822511,5.34626785,3056.1,3056.0,0.001]
[1764208822884,5.07486785,3056.1,3056.0,0.001]
[1764208823089,5.18986785,3056.1,3056.0,0.001]
[1764208823697,6.95047379,3056.1,3056.0,0.001]
[1764208823896,6.07186196,3056.1,3056.0,0.001]
[1764208824419,6.47736596,3056.1,3056.0,0.001]
[1764208824907,1.13109811,3056.0,3055.7,0.001]
[1764208825078,6.40563202,3055.8,3055.7,0.001]
[1764208825278,6.22928873,3055.8,3055.7,0.001]
[1764208825516,6.69119273,3055.8,3055.7,0.001]
[1764208825974,9.9636582,3055.8,3055.7,0.001]
[1764208826177,11.13539617,3055.8,3055.7,0.001]
[1764208826371,11.50664089,3055.8,3055.7,0.001]
[1764208826573,0.72559411,3055.7,3055.6,1e-08]
[1764208826791,0.405504,3055.6,3055.5,0.001]
[1764208826993,1.75736418,3055.6,3055.5,0.001]
[1764208827205,2.42162176,3055.6,3055.5,0.001]
[1764208828212,7.59127959,3055.6,3055.5,0.001]
[1764208828621,10.88493277,3055.6,3055.5,0.001]
[1764208828811,10.82853277,3055.6,3055.5,0.001]
[1764208829012,3.97513985,3055.6,3055.5,0.485]
[1764208829211,3.48767967,3055.6,3055.5,0.485]
[1764208829411,3.48767967,3055.6,3055.5,0.001]
[1764208829614,4.67873366,3055.6,3055.5,0.001]
[1764208830119,4.77873366,3055.6,3055.5,0.001]
[1764208830416,4.19013366,3055.6,3055.5,0.001]
[1764208831413,6.26498768,3055.6,3055.5,0.001]
[1764208831723,7.60511283,3055.6,3055.5,0.001]
[1764208831925,6.72689168,3055.6,3055.5,0.001]
[1764208832232,7.54879889,3055.6,3055.5,0.001]
[1764208832422,7.60519889,3055.6,3055.5,0.001]
[1764208832632,6.72689168,3055.6,3055.5,0.001]
[1764208832784,6.51189168,3055.6,3055.5,0.001]
[1764208832987,5.96249168,3055.6,3055.5,0.001]
[1764208833210,7.15321162,3055.6,3055.5,0.001]
[1764208833587,12.06524885,3055.6,3055.5,0.001]
[1764208833787,11.18702891,3055.6,3055.5,0.001]
[1764208834286,11.85113671,3055.6,3055.5,0.001]
[1764208834485,12.06513671,3055.6,3055.5,0.001]
[1764208834682,11.61813671,3055.6,3055.5,0.001]
[1764208834920,12.06513671,3055.6,3055.5,0.001]
[1764208835123,5.23689757,3055.6,3055.5,0.001]
[1764208835329,5.55289757,3055.6,3055.5,0.001]
[1764208835832,6.72199168,3055.6,3055.5,0.001]
[1764208836121,8.47903127,3055.6,3055.5,0.001]
[1764208836489,12.5005685,3055.6,3055.5,0.001]
[1764208836689,12.7300685,3055.6,3055.5,0.001]
[1764208836993,12.35790618,3055.6,3055.5,0.001]
[1764208838517,11.18702891,3055.6,3055.5,0.001]
[1764208839109,0.1,3055.4,3055.3,0.001]
[1764208839307,3.28914714,3055.4,3055.3,0.001]
[1764208839622,1.13109811,3055.3,3055.2,0.001]
[1764208839800,2.0276521,3055.3,3055.2,0.001]
[1764208839996,0.505504,3055.1,3055.0,0.001]
[1764208840199,1.94140183,3055.1,3055.0,0.001]
[1764208840410,2.64385582,3055.1,3055.0,0.001]
[1764208840611,6.01477109,3055.1,3055.0,0.001]
[1764208840815,6.46257109,3055.1,3055.0,0.001]
[1764208841305,4.74588887,3055.1,3055.0,0.001]
[1764208841621,6.01827109,3055.1,3055.0,0.001]
[1764208842219,6.46257109,3055.1,3055.0,0.001]
[1764208842420,5.29138887,3055.1,3055.0,0.001]
[1764208842920,4.74588887,3055.1,3055.0,0.001]
[1764208843225,6.02290795,3055.1,3055.0,0.001]
[1764208843398,4.85048887,3055.1,3055.0,0.001]
[1764208844130,5.29138887,3055.1,3055.0,0.001]
[1764208844299,7.04816662,3055.1,3055.0,0.001]
[1764208844701,7.77376073,3055.1,3055.0,0.001]
[1764208844928,0.1,3054.1,3053.8,0.4693]
[1764208845338,1.09425997,3054.5,3054.0,0.4544]
[1764208845524,0.1,3054.2,3053.8,0.4693]
[1764208845716,0.214,3054.1,3053.8,0.4693]
[1764208846136,0.214,3054.1,3053.7,0.1584]
[1764208846431,0.1,3053.9,3053.8,0.001]
[1764208846838,3.37450145,3053.9,3053.8,0.001]
[1764208847010,4.07859209,3053.9,3053.8,0.001]
[1764208847433,6.60529431,3053.9,3053.8,0.001]
[1764208847632,6.67039431,3053.9,3053.8,0.001]
[1764208848125,7.84407427,3053.9,3053.8,0.001]
[1764208848434,6.67039431,3053.9,3053.8,0.001]
[1764208848833,8.43091425,3053.9,3053.8,0.001]
[1764208849034,8.43091425,3053.9,3053.4,0.001]
[1764208849035,1.13109811,3053.8,3053.4,0.001]
[1764208849218,0.990904,3053.5,3053.4,0.001]
[1764208849533,0.70409064,3053.5,3053.4,0.001]
[1764208849713,0.70409064,3053.5,3053.4,0.9247]
[1764208849912,0.1,3053.5,3053.4,0.4554]
[1764208850119,0.80409064,3053.5,3053.4,0.001]
[1764208850808,4.07902104,3053.5,3053.4,0.001]
[1764208851145,5.09874608,3053.5,3053.4,0.001]
[1764208851311,5.56475008,3053.5,3053.4,0.001]
[1764208851506,5.09874608,3053.5,3053.4,0.001]
[1764208851838,4.19302104,3053.5,3053.4,0.9247]
[1764208852002,4.19302104,3053.5,3053.4,0.4554]
[1764208852211,4.75902504,3053.5,3053.4,0.001]
[1764208852532,5.96921915,3053.5,3053.4,0.001]
[1764208852717,8.30770945,3053.5,3053.4,0.001]
[1764208853139,7.42808802,3053.5,3053.4,0.001]
[1764208853310,7.42808802,3053.5,3053.1,0.001]
[1764208853311,0.72559411,3053.4,3053.1,0.001]
[1764208853509,0.505504,3053.2,3053.1,0.001]
[1764208853710,1.03012009,3053.2,3053.1,0.001]
[1764208853934,1.73421073,3053.2,3053.1,0.001]
[1764208854634,2.73120484,3053.2,3053.1,0.001]
[1764208854938,5.01555303,3053.2,3053.1,1.1079]
[1764208855254,9.84997817,3053.2,3053.1,0.001]
[1764208855410,9.84997817,3053.2,3051.9,0.1812]
[1764208855411,1.13109811,3053.1,3052.1,0.4693]
[1764208855610,0.1,3052.5,3052.1,0.4693]
[1764208855837,0.214,3052.4,3052.1,0.4693]
[1764208856040,0.314,3052.4,3052.1,0.4693]
[1764208856247,0.314,3052.4,3052.3,0.4544]
[1764208856457,0.214,3052.4,3052.3,0.4544]
[1764208856620,0.214,3052.4,3051.9,0.1812]
[1764208856822,0.1,3052.2,3051.9,0.6505]
[1764208857052,2.54206953,3052.2,3051.9,0.6505]
[1764208857235,2.54206953,3052.2,3051.5,0.14]
[1764208857236,0.1,3051.9,3051.5,0.14]
[1764208857553,0.214,3051.8,3051.6,0.4693]
[1764208858214,0.214,3051.8,3051.7,0.4544]
[1764208858822,0.214,3051.8,3051.5,0.14]
[1764208858823,0.1,3051.6,3051.5,0.14]
[1764208859441,0.1,3051.6,3051.5,0.5944]
[1764208859442,0.78677103,3051.6,3051.5,0.5944]
[1764208859611,1.19227503,3051.6,3051.5,0.14]
[1764208859813,1.25277503,3051.6,3051.5,0.14]
[1764208860014,1.38775923,3051.6,3051.5,0.5944]
[1764208860243,1.93049811,3051.6,3051.5,0.14]
[1764208860416,2.63165637,3051.6,3051.5,0.14]
[1764208860615,2.14625637,3051.6,3051.5,0.14]
[1764208860822,5.01772182,3051.6,3051.5,0.14]
[1764208861144,4.91772182,3051.6,3051.5,0.14]
[1764208861325,5.48372582,3051.6,3051.5,0.14]
[1764208861644,4.91772182,3051.6,3051.5,0.5944]
[1764208861843,5.48372582,3051.6,3051.5,0.14]
[1764208862032,6.89406194,3051.6,3051.5,0.14]
[1764208862436,7.37866194,3051.6,3051.5,0.14]
[1764208862637,0.405504,3051.5,3050.6,0.6525]
[1764208862816,3.27782876,3050.8,3050.6,0.6525]
[1764208863013,3.49182876,3050.8,3050.6,0.6525]
[1764208863244,3.49182876,3050.8,3050.7,0.4544]
[1764208863443,3.49182876,3050.8,3050.7,0.9237]
[1764208863725,0.1,3050.4,3049.8,0.1832]
[1764208863862,0.619504,3050.3,3049.8,0.1832]
[1764208864027,1.31959479,3050.3,3049.8,0.1832]
[1764208864233,1.31959479,3050.3,3049.8,0.6525]
[1764208864452,0.405504,3050.0,3049.5,0.1832]
[1764208864660,1.86312108,3050.3,3049.5,0.1832]
[1764208864661,0.214,3049.9,3049.5,0.1832]
[1764208864859,6.55780706,3049.8,3049.5,0.6525]
[1764208865193,6.65780706,3049.8,3049.5,0.6525]
[1764208865333,0.405504,3049.7,3049.5,0.6525]
[1764208865639,7.34498777,3049.8,3049.5,0.6525]
[1764208865831,0.405504,3049.7,3049.4,0.001]
[1764208866031,7.34498777,3049.8,3049.4,0.001]
[1764208866236,7.34498777,3049.8,3049.6,0.4544]
[1764208866428,7.34498777,3049.8,3049.4,0.001]
[1764208866429,0.505504,3049.5,3049.4,0.001]
[1764208866632,1.13109811,3049.5,3049.4,0.001]
[1764208866857,4.62432421,3049.5,3049.4,0.9247]
[1764208867057,4.72432421,3049.5,3049.4,0.001]
[1764208867261,5.46178837,3049.5,3049.4,0.001]
[1764208867869,6.64393344,3049.5,3049.4,0.001]
[1764208868445,6.09883344,3049.5,3049.4,0.001]
[1764208868647,6.62033344,3049.5,3049.4,0.001]
[1764208869367,6.16363344,3049.5,3049.4,0.001]
[1764208869567,5.94963344,3049.5,3049.4,0.001]
[1764208869772,6.16363344,3049.5,3049.4,0.001]
[1764208870141,6.62583344,3049.5,3049.4,0.001]
[1764208870562,0.405504,3049.2,3049.1,0.001]
[1764208870740,1.31799811,3049.2,3049.1,0.001]
[1764208870935,5.14107313,3049.2,3049.1,0.001]
[1764208871275,6.29536761,3049.2,3049.1,0.001]